{"text_format":"3","workbook":"xlsx","n_sheets":1,"sheets":["LAITTEIDEN INVENTAARIOLUETTELO"],"not_rendered":{"defined_names":5},"read":"whole","date_system":"1900"}

{"sheet":"LAITTEIDEN INVENTAARIOLUETTELO","index":0,"n_rows":9,"n_cols":19,"rows_kept":9,"merged":[[0,1,0,5],[0,6,0,9],[0,10,0,12],[0,13,0,14],[2,1,2,6],[2,7,2,18]]}
[null,"LAITTEIDEN INVENTAARIOLUETTELO"]
[]
[null,"KUNTO",{"$nulls":5},"TALOUDELLINEN TILA"]
[null,"Resurssi tai sarjanumero","Kohteen kuvaus (valmistaja ja malli)","Sijainti","Kunto","Toimittaja","Jäljellä oleva \nkäyttöaika ","Alkuperäinen arvo","Käsiraha","Osto- tai \nvuokrauspäivä","Laina-aika vuosissa","Lainan korko","Kuukausimaksu","Kuukausittaiset käyttökustannukset","Kuukausittaiset kokonaiskustannukset","Oletettu arvo laina-ajan lopussa","Vuosittainen \ntasapoisto","Kuukausittainen tasapoisto","Nykyinen arvo"]
[null,123,"Valmistaja Malli","Pääkonttori","Hyvä","paikallinen",5,{"v":30000,"d":"30,000.00 €"},{"v":5000,"d":"5,000.00 €"},{"$f":"DATE(YEAR(TODAY())-2, 1,1)","v":"2016-01-01"},4,{"v":0.1,"d":"10.00%"},{"$f":"IFERROR(IF(AND(Tiedot[[#This Row],[Alkuperäinen arvo]]>0,Tiedot[[#This Row],[Alkuperäinen arvo]]<>Tiedot[[#This Row],[Käsiraha]]),-1*PMT(Tiedot[[#This Row],[Lainan korko]]/12,Tiedot[[#This Row],[Laina-aika vuosissa]]*12,Tiedot[[#This Row],[Alkuperäinen arvo]]-Tiedot[[#This Row],[Käsiraha]]),0),0)","v":{"v":634.0645858686797,"d":"634.06 €"}},{"v":200,"d":"200.00 €"},{"$f":"IFERROR(Tiedot[[#This Row],[Kuukausittaiset käyttökustannukset]]+Tiedot[[#This Row],[Kuukausimaksu]],\"\")","v":{"v":834.0645858686797,"d":"834.06 €"}},{"v":20000,"d":"20,000.00 €"},{"$f":"IFERROR(IF(Tiedot[[#This Row],[Alkuperäinen arvo]]>0,SLN(Tiedot[[#This Row],[Alkuperäinen arvo]],Tiedot[[#This Row],[Oletettu arvo laina-ajan lopussa]],Tiedot[[#This Row],[Jäljellä oleva \nkäyttöaika ]]),0),0)","v":{"v":2000,"d":"2,000.00 €"}},{"$f":"IFERROR(Tiedot[[#This Row],[Vuosittainen \ntasapoisto]]/12,0)","v":{"v":166.66666666666666,"d":"166.67 €"}},{"$f":"IFERROR(Tiedot[[#This Row],[Alkuperäinen arvo]]-(Tiedot[[#This Row],[Vuosittainen \ntasapoisto]]*((TODAY()-Tiedot[[#This Row],[Osto- tai \nvuokrauspäivä]])/365)),0)","v":{"v":25013.698630136987,"d":"25,013.70 €"}}]
[null,456,"Valmistaja Malli","Pääkonttori","Erinomainen","paikallinen",3,{"v":5000,"d":"5,000.00 €"},{"v":5000,"d":"5,000.00 €"},{"$f":"DATE(YEAR(TODAY())-1, 1,1)","v":"2017-01-01"},null,null,{"$f":"IFERROR(IF(AND(Tiedot[[#This Row],[Alkuperäinen arvo]]>0,Tiedot[[#This Row],[Alkuperäinen arvo]]<>Tiedot[[#This Row],[Käsiraha]]),-1*PMT(Tiedot[[#This Row],[Lainan korko]]/12,Tiedot[[#This Row],[Laina-aika vuosissa]]*12,Tiedot[[#This Row],[Alkuperäinen arvo]]-Tiedot[[#This Row],[Käsiraha]]),0),0)","v":{"v":0,"d":"0.00 €"}},{"v":20,"d":"20.00 €"},{"$f":"IFERROR(Tiedot[[#This Row],[Kuukausittaiset käyttökustannukset]]+Tiedot[[#This Row],[Kuukausimaksu]],\"\")","v":{"v":20,"d":"20.00 €"}},null,{"$f":"IFERROR(IF(Tiedot[[#This Row],[Alkuperäinen arvo]]>0,SLN(Tiedot[[#This Row],[Alkuperäinen arvo]],Tiedot[[#This Row],[Oletettu arvo laina-ajan lopussa]],Tiedot[[#This Row],[Jäljellä oleva \nkäyttöaika ]]),0),0)","v":{"v":1666.6666666666667,"d":"1,666.67 €"}},{"$f":"IFERROR(Tiedot[[#This Row],[Vuosittainen \ntasapoisto]]/12,0)","v":{"v":138.88888888888889,"d":"138.89 €"}},{"$f":"IFERROR(Tiedot[[#This Row],[Alkuperäinen arvo]]-(Tiedot[[#This Row],[Vuosittainen \ntasapoisto]]*((TODAY()-Tiedot[[#This Row],[Osto- tai \nvuokrauspäivä]])/365)),0)","v":{"v":2515.981735159817,"d":"2,515.98 €"}}]
[null,789,"Valmistaja Malli","Itärannikko","Tyydyttävä","paikallinen",6,{"v":50000,"d":"50,000.00 €"},{"v":20000,"d":"20,000.00 €"},{"$f":"TODAY()","v":"2018-06-29"},5,{"v":0.05,"d":"5.00%"},{"$f":"IFERROR(IF(AND(Tiedot[[#This Row],[Alkuperäinen arvo]]>0,Tiedot[[#This Row],[Alkuperäinen arvo]]<>Tiedot[[#This Row],[Käsiraha]]),-1*PMT(Tiedot[[#This Row],[Lainan korko]]/12,Tiedot[[#This Row],[Laina-aika vuosissa]]*12,Tiedot[[#This Row],[Alkuperäinen arvo]]-Tiedot[[#This Row],[Käsiraha]]),0),0)","v":{"v":566.137009320328,"d":"566.14 €"}},{"v":40,"d":"40.00 €"},{"$f":"IFERROR(Tiedot[[#This Row],[Kuukausittaiset käyttökustannukset]]+Tiedot[[#This Row],[Kuukausimaksu]],\"\")","v":{"v":606.137009320328,"d":"606.14 €"}},{"v":1500,"d":"1,500.00 €"},{"$f":"IFERROR(IF(Tiedot[[#This Row],[Alkuperäinen arvo]]>0,SLN(Tiedot[[#This Row],[Alkuperäinen arvo]],Tiedot[[#This Row],[Oletettu arvo laina-ajan lopussa]],Tiedot[[#This Row],[Jäljellä oleva \nkäyttöaika ]]),0),0)","v":{"v":8083.333333333333,"d":"8,083.33 €"}},{"$f":"IFERROR(Tiedot[[#This Row],[Vuosittainen \ntasapoisto]]/12,0)","v":{"v":673.6111111111111,"d":"673.61 €"}},{"$f":"IFERROR(Tiedot[[#This Row],[Alkuperäinen arvo]]-(Tiedot[[#This Row],[Vuosittainen \ntasapoisto]]*((TODAY()-Tiedot[[#This Row],[Osto- tai \nvuokrauspäivä]])/365)),0)","v":{"v":50000,"d":"50,000.00 €"}}]
[{"$nulls":12},{"$f":"IFERROR(IF(AND(Tiedot[[#This Row],[Alkuperäinen arvo]]>0,Tiedot[[#This Row],[Alkuperäinen arvo]]<>Tiedot[[#This Row],[Käsiraha]]),-1*PMT(Tiedot[[#This Row],[Lainan korko]]/12,Tiedot[[#This Row],[Laina-aika vuosissa]]*12,Tiedot[[#This Row],[Alkuperäinen arvo]]-Tiedot[[#This Row],[Käsiraha]]),0),0)","v":{"v":0,"d":"0.00 €"}},null,{"$f":"IFERROR(Tiedot[[#This Row],[Kuukausittaiset käyttökustannukset]]+Tiedot[[#This Row],[Kuukausimaksu]],\"\")","v":{"v":0,"d":"0.00 €"}},null,{"$f":"IFERROR(IF(Tiedot[[#This Row],[Alkuperäinen arvo]]>0,SLN(Tiedot[[#This Row],[Alkuperäinen arvo]],Tiedot[[#This Row],[Oletettu arvo laina-ajan lopussa]],Tiedot[[#This Row],[Jäljellä oleva \nkäyttöaika ]]),0),0)","v":{"v":0,"d":"0.00 €"}},{"$f":"IFERROR(Tiedot[[#This Row],[Vuosittainen \ntasapoisto]]/12,0)","v":{"v":0,"d":"0.00 €"}},{"$f":"IFERROR(Tiedot[[#This Row],[Alkuperäinen arvo]]-(Tiedot[[#This Row],[Vuosittainen \ntasapoisto]]*((TODAY()-Tiedot[[#This Row],[Osto- tai \nvuokrauspäivä]])/365)),0)","v":{"v":0,"d":"0.00 €"}}]
[{"$nulls":12},{"$f":"IFERROR(IF(AND(Tiedot[[#This Row],[Alkuperäinen arvo]]>0,Tiedot[[#This Row],[Alkuperäinen arvo]]<>Tiedot[[#This Row],[Käsiraha]]),-1*PMT(Tiedot[[#This Row],[Lainan korko]]/12,Tiedot[[#This Row],[Laina-aika vuosissa]]*12,Tiedot[[#This Row],[Alkuperäinen arvo]]-Tiedot[[#This Row],[Käsiraha]]),0),0)","v":{"v":0,"d":"0.00 €"}},null,{"$f":"IFERROR(Tiedot[[#This Row],[Kuukausittaiset käyttökustannukset]]+Tiedot[[#This Row],[Kuukausimaksu]],\"\")","v":{"v":0,"d":"0.00 €"}},null,{"$f":"IFERROR(IF(Tiedot[[#This Row],[Alkuperäinen arvo]]>0,SLN(Tiedot[[#This Row],[Alkuperäinen arvo]],Tiedot[[#This Row],[Oletettu arvo laina-ajan lopussa]],Tiedot[[#This Row],[Jäljellä oleva \nkäyttöaika ]]),0),0)","v":{"v":0,"d":"0.00 €"}},{"$f":"IFERROR(Tiedot[[#This Row],[Vuosittainen \ntasapoisto]]/12,0)","v":{"v":0,"d":"0.00 €"}},{"$f":"IFERROR(Tiedot[[#This Row],[Alkuperäinen arvo]]-(Tiedot[[#This Row],[Vuosittainen \ntasapoisto]]*((TODAY()-Tiedot[[#This Row],[Osto- tai \nvuokrauspäivä]])/365)),0)","v":{"v":0,"d":"0.00 €"}}]